fUSD/lending_fUSD_20260327
["ID","MTS","AMOUNT","RATE_DAILY","PERIOD"]
[418950985,1774626734581,2750.0,0.00014824,2]
[418950986,1774626735090,3625.82,0.00015055,2]
[418950987,1774626735602,1600.0,0.00014931,2]
[418950988,1774626736313,3033.67,0.00015143,2]
[418950989,1774626797869,240.82,0.0001474,2]
[418950991,1774626803646,503.0,0.00013111,2]
[418950992,1774626836002,503.0,0.00013111,2]
[418950993,1774626847497,487.9351,0.0001601,2]
[418950995,1774626922050,1640.02,0.00015446,2]
[418950996,1774626922569,2700.0,0.00015979,2]
[418950997,1774626987847,167.4,0.00015548,2]
[418950998,1774627046081,502.0,0.00013111,2]
[418950999,1774627105468,502.0,0.00013111,2]
[418951005,1774627261207,208.29325262,0.0001601,2]
[418951009,1774627405432,502.0,0.00013111,2]
[418951010,1774627559944,151.0,0.0001601,2]
[418951011,1774627607625,858025.46164738,0.00016,2]
[418951012,1774627657947,300.0,8e-05,2]
[418951013,1774627657977,300.0,8e-05,2]
[418951014,1774627658005,300.0,8e-05,2]
[418951015,1774627658032,7378.63694018,8e-05,2]
[418951019,1774627720873,491.09,7.564e-05,2]
[418951020,1774627721396,294.42,8.225e-05,2]
[418951024,1774627759154,-293.09,8.879e-05,2]
[418951025,1774627759175,-2553.98976509,0.0001499,2]
[418951026,1774627759199,-2064.87991546,0.00015,2]
[418951027,1774627759219,-4996.67001427,0.00015,2]
[418951028,1774627763124,-3041.97635383,0.00015,2]
[418951029,1774627763145,-505.71522064,0.00015899,2]
[418951030,1774627763166,-3344.91116353,0.000159,2]
[418951032,1774627766086,-502.0,0.00013111,2]
[418951033,1774627779711,102.850022,0.00011869,2]
[418951034,1774627779732,147.149978,0.00011869,2]
[418951036,1774627783923,309.61507023,0.000125,2]
[418951040,1774627811565,7622.76775,9.5e-05,3]
[418951041,1774627811589,8021.39814017,9.5e-05,3]
[418951046,1774627831703,-963.98811803,9.5e-05,3]
[418951047,1774627831898,-1200.0,9.5e-05,3]
[418951048,1774627831910,-297.04785907,9.5e-05,3]
[418951049,1774627831921,-3715.46030087,9.5e-05,3]
[418951050,1774627831932,-29606.60244476,9.5e-05,3]
[418951051,1774627831941,-1000.0,0.000135,2]
[418951052,1774627831951,-10394.72969169,0.0001439,2]
[418951053,1774627831960,-2118.65502237,0.00015,2]
[418951054,1774627831971,-1095.56629781,0.00015,2]
[418951055,1774627831982,-1500.36,0.00015,2]
[418951056,1774627831997,-1046.42972454,0.00015,2]
[418951057,1774627832007,-729.0,0.00015,2]
[418951058,1774627832019,-1585.48274611,0.00015,2]
[418951059,1774627832028,-293.0,0.00015891,2]
[418951060,1774627832038,-137.32212808,0.000159,2]
[418951061,1774627832049,-2555.62431623,0.000159,2]
[418951068,1774627837932,-1170.75638054,0.000159,2]
[418951069,1774627837944,-44430.30828333,0.000159,2]
[418951070,1774627837956,-34443.99712,0.000159,2]
[418951071,1774627838068,-354.80398841,0.000159,2]
[418951072,1774627838181,-1179.88090319,0.000159,2]
[418951073,1774627838218,-1102.81289825,0.000159,2]
[418951074,1774627838229,-1926.69201616,0.000159,2]
[418951075,1774627838240,-1896.1372958,0.000159,2]
[418951076,1774627838252,-319.92834972,0.000159,2]
[418951082,1774627840160,-137904.94246208,0.000159,2]
[418951083,1774627840511,-333.33262535,0.000159,2]
[418951084,1774627840522,-781.06101906,0.000159,2]
[418951085,1774627840534,-674.66537723,0.000159,2]
[418951086,1774627840549,-4413.77588023,0.000159,2]
[418951087,1774627840591,-7721.94853633,0.000159,2]
[418951088,1774627840721,-291.64164538,0.000159,2]
[418951089,1774627840761,-43164.66532192,0.000159,2]
[418951090,1774627840771,-5569.59483755,0.000159,2]
[418951106,1774627843102,-31065.88407202,0.000159,2]
[418951107,1774627843113,-4131.7238808,0.000159,2]
[418951108,1774627843124,-7125.36641966,0.000159,2]
[418951109,1774627843136,-764.86434579,0.000159,2]
[418951110,1774627843147,-743.33980056,0.000159,2]
[418951111,1774627843159,-800.47612132,0.000159,2]
[418951112,1774627843170,-555.26621278,0.000159,2]
[418951113,1774627843181,-2509.07303865,0.000159,2]
[418951114,1774627843537,-969.19300227,0.000159,2]
[418951115,1774627843548,-250.00427004,0.000159,2]
[418951116,1774627843559,-2343.68669856,0.000159,2]
[418951117,1774627843570,-18314.47348714,0.000159,2]
[418951118,1774627843582,-27834.54548862,0.000159,2]
[418951119,1774627843592,-150.99805945,0.000159,2]
[418951120,1774627843602,-226.8992007,0.000159,2]
[418951121,1774627843612,-659.64810199,0.000159,2]
[418951122,1774627843622,-4256.43079682,0.000159,2]
[418951123,1774627843633,-2486.60152622,0.000159,2]
[418951124,1774627843645,-15708.19422196,0.000159,2]
[418951125,1774627843655,-500.0,0.00015973,2]
[418951126,1774627843665,-500.0,0.00015973,2]
[418951127,1774627843675,-500.0,0.00015973,2]
[418951128,1774627843684,-920.94502074,0.0001599,2]
[418951129,1774627843694,-920.94502074,0.0001599,2]
[418951130,1774627843704,-920.94502074,0.0001599,2]
[418951131,1774627843713,-684.0040152,0.00015999,2]
[418951132,1774627843723,-666.0,0.00015999,2]
[418951133,1774627843733,-425.21719612,0.00015999,2]
[418951134,1774627843743,-522.7034244,0.00015999,2]
[418951135,1774627843752,-182.79873137,0.00015999,2]
[418951136,1774627843761,-500.0,0.00015999,2]
[418951137,1774627843771,-623.60581579,0.00015999,2]
[418951138,1774627843780,-108146.31382419,0.00016,2]
[418951139,1774627843793,-3974.48708158,0.00016,2]
[418951140,1774627843804,-1030.1308482,0.00016,2]
[418951141,1774627843815,-1772.92596407,0.00016,2]
[418951152,1774627845804,-6744.28269683,0.00016,2]
[418951153,1774627851322,-1990.00000006,0.00011877,2]
[418951154,1774627851333,-9.99999994,0.00011877,2]
[418951155,1774627851343,-635.26985006,0.00012137,2]
[418951156,1774627851354,-909.0888,0.00012137,2]
[418951157,1774627851753,-315.64134994,0.00012137,2]
[418951158,1774627851764,-278.41609692,0.00012487,2]
[418951192,1774628640615,-8404963.82703173,0.00046843,30]
[418951193,1774628640642,-6430.69107652,0.00046843,30]
[418951194,1774628640669,-27245.18533841,0.00046843,30]
[418951195,1774628640695,-66992.16643668,0.00046843,30]
[418951196,1774628640722,-67897.78396411,0.00046843,30]
[418951197,1774628640748,-9141.19794473,0.00046843,30]
[418951198,1774628640775,-9935.99627092,0.00046843,30]
[418951199,1774628640801,-56369.05361041,0.00046843,30]
[418951200,1774628640827,-50002.8,0.00046843,120]
[418951201,1774628640853,-301021.29832649,0.00046843,30]
[418951202,1774628651048,-2582665.42446635,0.00046843,30]
[418951203,1774628651074,-6072904.42146169,0.00046843,30]
[418951204,1774628651100,-578.75235727,0.00046843,30]
[418951205,1774628651127,-343851.40171469,0.00046843,30]
[418951211,1774628829389,-600.0,0.00011213,2]
[418951212,1774628829411,-1200.0,0.00011633,2]
[418951213,1774628829432,-775.85064379,0.00011869,2]
[418951217,1774628967096,-424.14935621,0.00011869,2]
[418951218,1774628967117,-475.54,0.00012,2]
[418951219,1774628967138,-195.0,0.00012243,2]
[418951220,1774628967160,-600.0,0.00012276,2]
[418951221,1774628967180,-699.24,0.00012537,2]
[418951222,1774628967202,-195.0,0.00012642,2]
[418951223,1774628967222,-195.0,0.00012642,2]
[418951224,1774628967243,-196.43472492,0.00012642,2]
[418951225,1774628967265,-1670.0,0.00012793,2]
[418951226,1774628967286,-250.0,0.00013,2]
[418951227,1774628967307,-1220.0,0.0001309,2]
[418951228,1774628967327,-560.0,0.00013111,2]
[418951229,1774628967347,-151.0,0.00013153,2]
[418951230,1774628967367,-300.0,0.00013199,2]
[418951231,1774628967388,-195.0,0.000132,2]
[418951232,1774628967410,-263.37,0.00013228,2]
[418951233,1774628967431,-575.09189087,0.000134,2]
[418951234,1774628967453,-887.35,0.00013485,2]
[418951235,1774628967475,-150.0,0.000136,2]
[418951236,1774628967497,-1200.0,0.00013676,2]
[418951237,1774628967518,-159630.19,0.00013919,2]
[418951238,1774628967540,-41962.31,0.0001396,2]
[418951239,1774628967561,-2380.64,0.00013972,2]
[418951240,1774628967583,-200.0,0.00013972,2]
[418951241,1774628967603,-500.0,0.00013973,2]
[418951242,1774628967623,-500.0,0.00014065,2]
[418951243,1774628967644,-245.84,0.00014101,2]
[418951244,1774628967665,-150.0,0.0001416,2]
[418951245,1774628967686,-230.23,0.00014177,2]
[418951246,1774628967708,-283.96,0.00014269,2]
[418951247,1774628976131,151.0,0.00013332,2]
[418951250,1774629031838,-1000.0,0.00014521,2]
[418951251,1774629031848,-134.09669,0.0001467,2]
[418951252,1774629031961,-2246.54331,0.0001467,2]
[418951253,1774629031971,-230.23,0.00014965,2]
[418951254,1774629031981,-150.0,0.00014999,2]
[418951255,1774629031991,-300.0,0.00015,2]
[418951256,1774629032001,-162.33,0.00015,2]
[418951257,1774629032010,-1500.0,0.00015068,2]
[418951258,1774629032020,-974.88490051,0.000152,5]
[418951259,1774629032044,-163.88492328,0.000152,5]
[418951260,1774629032055,-61.23017621,0.000152,5]
[418951261,1774629032067,-1738.76982379,0.000153,5]
[418951262,1774629032096,-661.23017621,0.000153,5]
[418951263,1774629032106,-150.0,0.000153,2]
[418951264,1774629032116,-417.47950424,0.00015369,2]
[418951266,1774629032127,-450.0,0.00015369,2]
[418951268,1774629038096,-1513.16049576,0.00015369,2]
[418951269,1774629038106,-3600.0,0.000154,5]
[418951270,1774629038117,-4900.0,0.000155,5]
[418951271,1774629038127,-1687.24356323,0.000156,5]
[418951272,1774629038139,-4412.75643677,0.000156,5]
[418951273,1774629038347,-2000.0,0.00015616,2]
[418951274,1774629038357,-1200.0,0.000157,5]
[418951275,1774629038367,-150.0,0.00015749,2]
[418951276,1774629038377,-230.23,0.00015753,2]
[418951277,1774629038386,-5277.32727799,0.0001579,2]
[418951278,1774629038395,-1200.0,0.000158,5]
[418951279,1774629038404,-491.85231714,0.00015806,2]
[418951280,1774629038416,-575.08996854,0.00015806,2]
[418951281,1774629038428,-4210.38499224,0.00015806,2]
[418951282,1774629038437,-5277.32727792,0.00015821,2]
[418951283,1774629038447,-5277.32727792,0.00015837,2]
[418951284,1774629038457,-5277.32727792,0.00015853,2]
[418951285,1774629038466,-2669.47116674,0.00015869,2]
[418951286,1774629038478,-639.31888652,0.00015869,2]
[418951287,1774629038500,-796.55986639,0.00015869,2]
[418951288,1774629038512,-1171.97735827,0.00015869,2]
[418951289,1774629038521,-500.0,0.00015873,2]
[418951291,1774629038531,-500.0,0.00015873,2]
[418951293,1774629038541,-227.36412512,0.00015873,2]
[418951295,1774629038550,-1864.84854202,0.00015884,2]
[418951297,1774629038561,-3412.4787359,0.00015884,2]
[418951299,1774629038570,-1333.92,0.00015889,2]
[418951301,1774629038583,-500.0,0.00015889,2]
[418951303,1774629038593,-500.0,0.00015889,2]
[418951305,1774629038602,-500.0,0.00015889,2]
[418951307,1774629038611,-500.0,0.00015889,2]
[418951308,1774629038621,-552.23510145,0.00015889,2]
[418951309,1774629038630,-1473.16616265,0.0001589,2]
[418951310,1774629038641,-6600.0,0.0001589,2]
[418951311,1774629038652,-4934.206548,0.0001589,2]
[418951312,1774629038664,-4810.94195086,0.0001589,2]
[418951315,1774629040261,-454.35,0.0001589,2]
[418951316,1774629040273,-475.80353924,0.0001589,2]
[418951317,1774629040585,-79436.18733591,0.0001589,2]
[418951318,1774629040597,-10296.8387082,0.0001589,2]
[418951319,1774629040609,-502.96889993,0.0001589,2]
[418951320,1774629040620,-1008.51062554,0.0001589,2]
[418951321,1774629040685,-19875.52667593,0.0001589,2]
[418951322,1774629040697,-2315.09651318,0.0001589,2]
[418951323,1774629040710,-695.34,0.0001589,2]
[418951324,1774629040721,-1819.1209591,0.0001589,2]
[418951325,1774629040905,-4675.76189516,0.0001589,2]
[418951326,1774629040916,-18509.9790909,0.0001589,2]
[418951327,1774629040926,-1267.4456576,0.0001589,2]
[418951328,1774629040937,-500.0,0.00015898,2]
[418951329,1774629040947,-500.0,0.00015898,2]
[418951330,1774629040956,-558.22,0.00015898,2]
[418951331,1774629040965,-590.2815705,0.00015898,2]
[418951332,1774629040975,-353.52037858,0.00015898,2]
[418951333,1774629040984,-500.0,0.00015899,2]
[418951334,1774629040993,-297.65203729,0.00015899,2]
[418951335,1774629041003,-573.64482082,0.00015899,2]
[418951336,1774629041013,-557.02512499,0.00015899,2]
[418951337,1774629041022,-500.0,0.00015899,2]
[418951338,1774629041032,-500.0,0.00015899,2]
[418951339,1774629041042,-500.0,0.00015899,2]
[418951340,1774629041051,-504.76725669,0.00015899,2]
[418951341,1774629041063,-500.0,0.00015899,2]
[418951342,1774629041074,-500.0,0.00015899,2]
[418951343,1774629041085,-500.0,0.00015899,2]
[418951344,1774629041094,-508.98024643,0.00015899,2]
[418951345,1774629041104,-500.0,0.00015899,2]
[418951346,1774629041114,-507.40101098,0.00015899,2]
[418951347,1774629041124,-500.0,0.00015899,2]
[418951348,1774629041134,-500.0,0.00015899,2]
[418951349,1774629041143,-558.22,0.00015899,2]
[418951350,1774629041152,-430.98859366,0.00015899,2]
[418951351,1774629041185,-69.01140634,0.00015899,2]
[418951352,1774629041195,-500.0,0.00015899,2]
[418951353,1774629041206,-500.0,0.00015899,2]
[418951354,1774629041215,-500.0,0.00015899,2]
[418951355,1774629041226,-583.62,0.00015899,2]
[418951356,1774629041235,-626.84,0.00015899,2]
[418951357,1774629041245,-626.84,0.00015899,2]
[418951358,1774629041255,-38374.74883701,0.00015899,2]
[418951359,1774629041266,-504.98451162,0.00015899,2]
[418951360,1774629041275,-513.78,0.00015899,2]
[418951361,1774629041284,-513.78,0.00015899,2]
[418951362,1774629041294,-1333.92,0.00015899,2]
[418951363,1774629041304,-38374.74883698,0.00015899,2]
[418951364,1774629041313,-13999.42913755,0.00015899,2]
[418951365,1774629041325,-15833.6022456,0.00015899,2]
[418951369,1774629043951,-433.84915037,0.00015899,2]
[418951370,1774629043964,-500.0,0.00015899,2]
[418951371,1774629044005,-14.02087616,0.00015899,2]
[418951372,1774629044017,-1342.2,0.00015899,2]
[418951374,1774629044079,-341.04,0.00015899,2]
[418951376,1774629046267,-917.9838,0.00015899,2]
[418951377,1774629046367,-531.05025,0.00015899,2]
[418951378,1774629046379,-4461.5733773,0.00015899,2]
[418951379,1774629046389,-38374.74883698,0.00015899,2]
[418951380,1774629046399,-35622.56032764,0.00015899,2]
[418951381,1774629046459,-1155.50419415,0.00015899,2]
[418951382,1774629046470,-701.11031412,0.00015899,2]
[418951383,1774629046482,-895.57400107,0.00015899,2]
[418951384,1774629046492,-15357.42599893,0.000159,2]
[418951400,1774630035162,-1314.41,0.00011507,2]
[418951401,1774630035186,-560.1939,0.00013111,2]
[418951402,1774630035211,-166.66,0.00013273,2]
[418951403,1774630035234,-166.66,0.00013552,2]
[418951404,1774630035256,-166.66,0.00013832,2]
[418951405,1774630035279,-200.0,0.00013963,2]
[418951406,1774630035301,-150.0,0.00013971,2]
[418951407,1774630035323,-300.0,0.00013971,2]
[418951408,1774630035345,-3240.0,0.00013972,2]
[418951409,1774630035368,-10911.26230258,0.00013972,2]
[418951410,1774630155089,-500.0,0.00013963,2]
[418951411,1774630155116,-500.0,0.00013963,2]
[418951412,1774630155143,-500.0,0.00013963,2]
[418951413,1774630155169,-500.0,0.00013963,2]
[418951414,1774630155195,-151.0,0.00013963,2]
[418951415,1774630155222,-5441.72769742,0.00013972,2]
[418951416,1774630155249,-1113.6,0.00013972,2]
[418951417,1774630155273,-5114.1,0.00013972,2]
[418951418,1774630155298,-166.66,0.00014111,2]
[418951419,1774630155323,-166.66,0.00014391,2]
[418951420,1774630155348,-166.66,0.00014391,2]
[418951422,1774630235005,-232.44995365,0.00014511,2]
[418951423,1774630235015,-151.0,0.00014511,2]
[418951424,1774630235025,-150.0,0.000146,2]
[418951425,1774630235035,-166.66,0.0001467,2]
[418951426,1774630235047,-39.90798491,0.00014794,2]
[418951427,1774630235071,-191.56201509,0.00014794,2]
[418951428,1774630235080,-151.76121809,0.00014847,2]
[418951429,1774630235104,-3542.29878191,0.00014847,2]
[418951430,1774630235114,-36.68644235,0.00014855,2]
[418951431,1774630235149,-454.55387908,0.00014855,2]
[418951432,1774630235160,-514.79967857,0.00014855,2]
[418951433,1774630235169,-151.0,0.00015059,2]
[418951434,1774630235178,-11.12037062,0.000152,5]
[418951435,1774630235194,-488.87962938,0.000152,5]
[418951436,1774630235203,-264.62584649,0.000153,5]
[418951437,1774630235345,-835.37415351,0.000153,5]
[418951438,1774630235354,-805.70865077,0.000154,5]
[418951445,1774630238131,-345.71362037,0.000154,5]
[418951446,1774630238143,-548.57772886,0.000154,5]
[418951447,1774630238153,-376.42227114,0.000155,5]
[418951448,1774630238165,-1923.57772886,0.000155,5]
[418951449,1774630238174,-642.57328093,0.00015507,2]
[418951451,1774630238722,-2805.22671907,0.00015507,2]
[418951452,1774630238733,-2900.0,0.000156,5]
[418951453,1774630238744,-151.0,0.00015607,2]
[418951454,1774630238756,-500.0,0.000157,5]
[418951455,1774630238765,-1113.6,0.00015718,2]
[418951456,1774630238775,-235.0,0.00015753,2]
[418951457,1774630238783,-235.0,0.00015753,2]
[418951458,1774630238793,-375.0,0.00015781,2]
[418951459,1774630238803,-710.0,0.00015781,2]
[418951460,1774630238812,-2886.0935505,0.00015799,2]
[418951461,1774630238822,-500.0,0.000158,5]
[418951462,1774630238832,-2886.09355047,0.0001581,2]
[418951463,1774630238841,-2886.09355047,0.00015821,2]
[418951464,1774630238851,-2886.09355047,0.00015833,2]
[418951465,1774630238860,-2886.09355047,0.00015844,2]
[418951466,1774630238869,-150.0,0.00015854,2]
[418951467,1774630238879,-2886.09355047,0.00015855,2]
[418951468,1774630238888,-2886.09355047,0.00015866,2]
[418951469,1774630238898,-2886.09355047,0.00015878,2]
[418951470,1774630238908,-2886.09355047,0.00015889,2]
[418951471,1774630238917,-500.0,0.00015889,2]
[418951472,1774630238926,-500.0,0.00015889,2]
[418951473,1774630238935,-500.0,0.00015889,2]
[418951474,1774630238945,-574.6,0.00015889,2]
[418951475,1774630238954,-500.0,0.00015889,2]
[418951476,1774630238964,-13000.9,0.0001589,2]
[418951477,1774630238973,-2000.0,0.0001589,2]
[418951478,1774630238983,-3447.8,0.00015895,2]
[418951479,1774630238992,-500.0,0.00015898,2]
[418951480,1774630239002,-283.58167794,0.00015898,2]
[418951481,1774630239011,-500.0,0.00015899,2]
[418951482,1774630239023,-91221.3536773,0.00015899,2]
[418951483,1774630239032,-500.0,0.00015899,2]
[418951484,1774630239042,-29882.1602687,0.00015899,2]
[418951485,1774630239051,-500.0,0.00015899,2]
[418951486,1774630239061,-500.0,0.00015899,2]
[418951487,1774630239071,-3968.5944067,0.00015899,2]
[418951488,1774630239081,-574.6,0.00015899,2]
[418951489,1774630239090,-500.0,0.00015899,2]
[418951490,1774630239100,-2761.6523059,0.00015899,2]
[418951491,1774630239110,-511.71,0.00015899,2]
[418951492,1774630239120,-1222.76,0.00015899,2]
[418951493,1774630239131,-545.87069986,0.00015899,2]
[418951494,1774630239140,-500.0,0.00015899,2]
[418951495,1774630239150,-1694.49241084,0.00015899,2]
[418951496,1774630239159,-543.25840902,0.00015899,2]
[418951497,1774630239169,-553.10600438,0.00015899,2]
[418951498,1774630239178,-532.09816881,0.00015899,2]
[418951499,1774630239187,-1694.49241077,0.00015899,2]
[418951500,1774630239197,-1694.49241077,0.00015899,2]
[418951501,1774630239206,-1694.49241077,0.00015899,2]
[418951502,1774630239215,-1694.49241077,0.000159,2]
[418951503,1774630239225,-1694.49241077,0.000159,2]
[418951504,1774630239234,-1694.49241077,0.000159,2]
[418951505,1774630239244,-1640.66649256,0.000159,2]
[418951506,1774630239254,-200.0,0.000159,2]
[418951507,1774630239263,-200.0,0.000159,2]
[418951508,1774630239273,-505.81,0.000159,2]
[418951509,1774630239282,-237.2897,0.000159,2]
[418951510,1774630239292,-1068.66626676,0.000159,2]
[418951511,1774630239302,-500.0,0.000159,5]
[418951512,1774630239311,-199812.50155507,0.000159,2]
[418951513,1774630239321,-1694.49241077,0.000159,2]
[418951514,1774630239330,-3512.27566456,0.000159,2]
[418951515,1774630239340,-301.9961189,0.000159,2]
[418951516,1774630239350,-2886.09355047,0.000159,2]
[418951517,1774630239359,-9122.39581284,0.000159,2]
[418951518,1774630239369,-453.79840138,0.000159,2]
[418951519,1774630239379,-394.92449423,0.000159,2]
[418951520,1774630239389,-10000.0,0.0001595,2]
[418951521,1774630239398,-10000.0,0.0001595,2]
[418951522,1774630239408,-10000.0,0.0001595,2]
[418951523,1774630239417,-9574.0,0.0001595,2]
[418951524,1774630239427,-626.24588334,0.00015973,2]
[418951525,1774630239437,-500.25354559,0.00015973,2]
[418951526,1774630239446,-500.0,0.00015973,2]
[418951527,1774630239456,-500.0,0.00015973,2]
[418951528,1774630239466,-500.0,0.00015973,2]
[418951529,1774630239477,-282.41913319,0.00015973,2]
[418951530,1774630239488,-500.0,0.00015973,2]
[418951531,1774630239499,-500.0,0.00015973,2]
[418951532,1774630239509,-500.0,0.00015973,2]
[418951533,1774630239518,-500.0,0.00015973,2]
[418951534,1774630239528,-500.52239873,0.00015973,2]
[418951535,1774630239537,-500.0,0.00015973,2]
[418951536,1774630239547,-500.74550538,0.00015973,2]
[418951537,1774630239556,-500.0,0.00015973,2]
[418951538,1774630239566,-501.20618875,0.00015973,2]
[418951539,1774630239577,-500.0,0.00015973,2]
[418951540,1774630239586,-500.0,0.00015973,2]
[418951541,1774630239600,-500.0,0.00015973,2]
[418951542,1774630239610,-500.0,0.00015973,2]
[418951543,1774630239619,-611.41964849,0.00015973,2]
[418951544,1774630239628,-500.0,0.00015973,2]
[418951545,1774630239638,-500.0,0.00015973,2]
[418951546,1774630239648,-13000.9,0.00015989,2]
[418951547,1774630239659,-500.0,0.00015998,2]
[418951548,1774630239668,-500.0,0.00015998,2]
[418951549,1774630239678,-500.0,0.00015998,2]
[418951550,1774630239688,-574.6,0.00015998,2]
[418951551,1774630239698,-500.0,0.00015998,2]
[418951552,1774630239708,-1222.76,0.00015998,2]
[418951553,1774630239717,-500.0,0.00015998,2]
[418951554,1774630239730,-218.7013832,0.00015998,2]
[418951555,1774630239739,-500.0,0.00015998,2]
[418951556,1774630239748,-500.0,0.00015998,2]
[418951557,1774630239758,-333.96194833,0.00015998,2]
[418951558,1774630239768,-153.09096823,0.00015998,2]
[418951559,1774630239777,-356.87322004,0.00015998,2]
[418951560,1774630239786,-666.0,0.00015999,2]
[418951561,1774630239796,-666.0,0.00015999,2]
[418951562,1774630239805,-666.0,0.00015999,2]
[418951563,1774630239814,-500.0,0.00015999,2]
[418951564,1774630239823,-500.0,0.00015999,2]
[418951565,1774630239833,-500.0,0.00015999,2]
[418951566,1774630239842,-500.0,0.00015999,2]
[418951567,1774630239852,-500.0,0.00015999,2]
[418951568,1774630239862,-500.0,0.00015999,2]
[418951569,1774630239871,-500.0,0.00015999,2]
[418951570,1774630239881,-500.0,0.00015999,2]
[418951571,1774630239891,-312.63030124,0.00015999,2]
[418951572,1774630239901,-173.335,0.00015999,2]
[418951573,1774630239912,-500.0,0.00015999,2]
[418951574,1774630239921,-500.0,0.00015999,2]
[418951575,1774630239930,-500.0,0.00015999,2]
[418951576,1774630239940,-415.88455514,0.00015999,2]
[418951577,1774630239949,-500.0,0.00015999,2]
[418951578,1774630239958,-500.0,0.00015999,2]
[418951579,1774630239968,-500.0,0.00015999,2]
[418951580,1774630239977,-500.0,0.00015999,2]
[418951581,1774630239988,-500.0,0.00015999,2]
[418951582,1774630239999,-500.0,0.00015999,2]
[418951583,1774630240008,-500.0,0.00015999,2]
[418951584,1774630240018,-500.0,0.00015999,2]
[418951585,1774630240029,-500.0,0.00015999,2]
[418951586,1774630240038,-500.0,0.00015999,2]
[418951587,1774630240047,-500.0,0.00015999,2]
[418951588,1774630240057,-500.0,0.00015999,2]
[418951589,1774630240066,-500.0,0.00015999,2]
[418951590,1774630240075,-500.0,0.00015999,2]
[418951591,1774630240084,-500.0,0.00015999,2]
[418951592,1774630240094,-500.0,0.00015999,2]
[418951593,1774630240103,-500.0,0.00015999,2]
[418951594,1774630240252,-500.0,0.00015999,2]
[418951595,1774630240263,-500.0,0.00015999,2]
[418951596,1774630240273,-500.0,0.00015999,2]
[418951597,1774630240282,-500.0,0.00015999,2]
[418951598,1774630240292,-500.0,0.00015999,2]
[418951599,1774630240301,-500.0,0.00015999,2]
[418951600,1774630240311,-500.0,0.00015999,2]
[418951601,1774630240320,-500.0,0.00015999,2]
[418951602,1774630240330,-500.0,0.00015999,2]
[418951603,1774630240339,-500.0,0.00015999,2]
[418951604,1774630240348,-500.0,0.00015999,2]
[418951605,1774630240358,-500.0,0.00015999,2]
[418951606,1774630240368,-500.0,0.00015999,2]
[418951608,1774630240377,-500.0,0.00015999,2]
[418951609,1774630240386,-500.0,0.00015999,2]
[418951610,1774630240395,-500.0,0.00015999,2]
[418951611,1774630240404,-500.0,0.00015999,2]
[418951613,1774630240413,-500.0,0.00015999,2]
[418951614,1774630240422,-500.0,0.00015999,2]
[418951615,1774630240432,-500.0,0.00015999,2]
[418951616,1774630240443,-500.0,0.00015999,2]
[418951617,1774630240454,-500.0,0.00015999,2]
[418951618,1774630240465,-500.0,0.00015999,2]
[418951619,1774630240475,-500.0,0.00015999,2]
[418951620,1774630240485,-500.0,0.00015999,2]
[418951621,1774630240494,-500.0,0.00015999,2]
[418951622,1774630240503,-500.0,0.00015999,2]
[418951623,1774630240512,-500.0,0.00015999,2]
[418951624,1774630240522,-500.0,0.00015999,2]
[418951625,1774630240531,-500.0,0.00015999,2]
[418951626,1774630240540,-500.0,0.00015999,2]
[418951627,1774630240549,-500.0,0.00015999,2]
[418951628,1774630240558,-500.0,0.00015999,2]
[418951629,1774630240568,-500.0,0.00015999,2]
[418951630,1774630240577,-500.0,0.00015999,2]
[418951631,1774630240586,-500.0,0.00015999,2]